[Event "Early-Titled-Tuesday-Blitz-March-26-2024"]
[Site "Chess.com"]
[Date "2024.03.26"]
[Round "7"]
[White "azikom"]
[Black "JoliyRoger"]
[Result "1-0"]
[WhiteElo "2617"]
[BlackElo "2424"]
[TimeControl "180+1"]
[EndTime "9:14:52 PDT"]
[Termination "azikom won on time"]

1. d4 {[%clk 0:02:58.6]} 1... Nf6 {[%clk 0:02:59.1]} 2. c4 {[%clk 0:02:58.4]}
2... e6 {[%clk 0:02:59.7]} 3. Nc3 {[%clk 0:02:59]} 3... Bb4 {[%clk 0:03:00.1]}
4. e3 {[%clk 0:02:59.5]} 4... c5 {[%clk 0:03:00.6]} 5. Ne2 {[%clk 0:02:59.5]}
5... cxd4 {[%clk 0:03:00.7]} 6. exd4 {[%clk 0:03:00.4]} 6... d5 {[%clk
0:03:01.3]} 7. a3 {[%clk 0:03:00.5]} 7... Bxc3+ {[%clk 0:03:01.2]} 8. Nxc3
{[%clk 0:03:00.6]} 8... Nc6 {[%clk 0:03:01.9]} 9. c5 {[%clk 0:03:00.3]} 9... Ne4
{[%clk 0:03:02.2]} 10. Nxe4 {[%clk 0:02:57.4]} 10... dxe4 {[%clk 0:03:02.6]} 11.
Be3 {[%clk 0:02:57]} 11... O-O {[%clk 0:03:02.5]} 12. Qd2 {[%clk 0:02:42.2]}
12... f5 {[%clk 0:03:01.2]} 13. Rd1 {[%clk 0:02:39.9]} 13... Ne7 {[%clk
0:03:00.4]} 14. Bf4 {[%clk 0:02:39]} 14... Nd5 {[%clk 0:02:55.2]} 15. Bd6 {[%clk
0:02:38]} 15... Rf6 {[%clk 0:02:36.4]} 16. Bc4 {[%clk 0:02:37.7]} 16... Bd7
{[%clk 0:02:36.6]} 17. O-O {[%clk 0:02:25]} 17... Bc6 {[%clk 0:02:35.6]} 18. b4
{[%clk 0:02:22.5]} 18... a6 {[%clk 0:02:34.2]} 19. Rfe1 {[%clk 0:02:10.9]} 19...
Qd7 {[%clk 0:02:29.5]} 20. Be5 {[%clk 0:02:04]} 20... Rg6 {[%clk 0:02:28.2]} 21.
g3 {[%clk 0:02:03.7]} 21... Ne7 {[%clk 0:02:21]} 22. Rb1 {[%clk 0:01:57.9]}
22... Bd5 {[%clk 0:02:18.3]} 23. Bf1 {[%clk 0:01:56.6]} 23... Nc6 {[%clk
0:02:17.5]} 24. Bd6 {[%clk 0:01:56.1]} 24... Na7 {[%clk 0:02:04.5]} 25. Qe3
{[%clk 0:01:39.1]} 25... Bc6 {[%clk 0:01:48.8]} 26. Red1 {[%clk 0:01:37.5]}
26... Nc8 {[%clk 0:01:45.9]} 27. Be5 {[%clk 0:01:36]} 27... Ne7 {[%clk
0:01:46.4]} 28. Rdc1 {[%clk 0:01:25]} 28... Re8 {[%clk 0:01:44.3]} 29. Qb3
{[%clk 0:01:23.5]} 29... Nd5 {[%clk 0:01:28.6]} 30. b5 {[%clk 0:01:19.8]} 30...
axb5 {[%clk 0:01:25.5]} 31. Bxb5 {[%clk 0:01:20]} 31... Rc8 {[%clk 0:00:24.6]}
32. Bxc6 {[%clk 0:01:18.9]} 32... bxc6 {[%clk 0:00:25.5]} 33. Qb7 {[%clk
0:01:18.5]} 33... Qe8 {[%clk 0:00:19.3]} 34. a4 {[%clk 0:01:15.9]} 34... f4
{[%clk 0:00:15.8]} 35. Qxc8 {[%clk 0:01:10.9]} 35... Qxc8 {[%clk 0:00:15.3]} 36.
Rb8 {[%clk 0:01:11.5]} 36... Qxb8 {[%clk 0:00:15.6]} 37. Bxb8 {[%clk 0:01:12.1]}
37... Nb4 {[%clk 0:00:05.8]} 38. a5 {[%clk 0:01:09.6]} 38... fxg3 {[%clk
0:00:04.9]} 39. hxg3 {[%clk 0:01:09.2]} 39... Na6 {[%clk 0:00:05.4]} 40. Be5
{[%clk 0:01:07.8]} 40... h5 {[%clk 0:00:02.7]} 41. Kf1 {[%clk 0:01:03.3]} 41...
h4 {[%clk 0:00:02.9]} 42. gxh4 {[%clk 0:01:03.3]} 42... Rg4 {[%clk 0:00:03.1]}
43. Rb1 {[%clk 0:01:00.9]} 1-0

[Event "Early-Titled-Tuesday-Blitz-March-26-2024"]
[Site "Chess.com"]
[Date "2024.03.26"]
[Round "7"]
[White "Kotofeyca"]
[Black "Gennady_Kozlov"]
[Result "0-1"]
[WhiteElo "2493"]
[BlackElo "2662"]
[TimeControl "180+1"]
[EndTime "9:14:54 PDT"]
[Termination "Gennady_Kozlov won on time"]

1. d4 {[%clk 0:03:00.9]} 1... e6 {[%clk 0:02:59.2]} 2. c4 {[%clk 0:03:00.1]}
2... b6 {[%clk 0:02:57.8]} 3. Nc3 {[%clk 0:02:59.4]} 3... Bb7 {[%clk 0:02:58.3]}
4. Nf3 {[%clk 0:02:55.5]} 4... Nf6 {[%clk 0:02:54.4]} 5. a3 {[%clk 0:02:47.9]}
5... Be7 {[%clk 0:02:53]} 6. Bg5 {[%clk 0:02:46.3]} 6... Ne4 {[%clk 0:02:48.2]}
7. Nxe4 {[%clk 0:02:40.2]} 7... Bxe4 {[%clk 0:02:37.8]} 8. Bxe7 {[%clk
0:02:40.2]} 8... Qxe7 {[%clk 0:02:37.9]} 9. Nd2 {[%clk 0:02:34.6]} 9... Bb7
{[%clk 0:02:34.7]} 10. e4 {[%clk 0:02:32.5]} 10... d5 {[%clk 0:02:34.3]} 11.
cxd5 {[%clk 0:02:06.1]} 11... exd5 {[%clk 0:02:35.2]} 12. e5 {[%clk 0:02:06.3]}
12... c5 {[%clk 0:02:33.6]} 13. Bb5+ {[%clk 0:01:41.1]} 13... Bc6 {[%clk
0:02:28.6]} 14. Qa4 {[%clk 0:01:35.4]} 14... Qd7 {[%clk 0:02:25.3]} 15. Bxc6
{[%clk 0:01:34]} 15... Nxc6 {[%clk 0:02:25.8]} 16. dxc5 {[%clk 0:01:18.2]} 16...
bxc5 {[%clk 0:02:25.1]} 17. O-O {[%clk 0:00:37.4]} 17... Nxe5 {[%clk 0:02:04.4]}
18. Qa5 {[%clk 0:00:28.2]} 18... Nd3 {[%clk 0:02:03.7]} 19. Qc3 {[%clk
0:00:21.3]} 19... c4 {[%clk 0:01:58]} 20. Qxg7 {[%clk 0:00:18.5]} 20... O-O-O
{[%clk 0:01:57.5]} 21. Nf3 {[%clk 0:00:12.2]} 21... Rhg8 {[%clk 0:01:52.4]} 22.
Qd4 {[%clk 0:00:12.1]} 22... Rg4 {[%clk 0:01:48.5]} 23. Qe3 {[%clk 0:00:10.1]}
23... Nf4 {[%clk 0:01:43.3]} 24. g3 {[%clk 0:00:09.9]} 24... Nh3+ {[%clk
0:01:39.5]} 25. Kg2 {[%clk 0:00:09.8]} 25... Nf4+ {[%clk 0:01:37.5]} 26. Kh1
{[%clk 0:00:09.4]} 26... Nd3 {[%clk 0:01:36.2]} 27. Nd4 {[%clk 0:00:08.5]} 27...
Re4 {[%clk 0:01:33.7]} 28. Qd2 {[%clk 0:00:08.2]} 28... Rxd4 {[%clk 0:01:33.1]}
29. b3 {[%clk 0:00:07.9]} 29... Qh3 {[%clk 0:01:24.4]} 30. Qc3 {[%clk
0:00:05.8]} 30... Rh4 {[%clk 0:01:19.9]} 31. gxh4 {[%clk 0:00:03.7]} 31... Qf3+
{[%clk 0:01:18.4]} 32. Kg1 {[%clk 0:00:03.7]} 32... Rg8+ {[%clk 0:00:27.6]} 0-1

[Event "Early-Titled-Tuesday-Blitz-March-26-2024"]
[Site "Chess.com"]
[Date "2024.03.26"]
[Round "7"]
[White "Iskusnyh"]
[Black "cthulhuuu"]
[Result "0-1"]
[WhiteElo "2612"]
[BlackElo "2413"]
[TimeControl "180+1"]
[EndTime "9:14:54 PDT"]
[Termination "cthulhuuu won on time"]

1. d4 {[%clk 0:02:59.2]} 1... Nf6 {[%clk 0:02:50.3]} 2. c4 {[%clk 0:02:56.8]}
2... e5 {[%clk 0:02:50.5]} 3. dxe5 {[%clk 0:02:54.8]} 3... Ng4 {[%clk
0:02:50.7]} 4. e3 {[%clk 0:02:53.1]} 4... Nxe5 {[%clk 0:02:50.8]} 5. Nh3 {[%clk
0:02:51.5]} 5... d5 {[%clk 0:02:50.8]} 6. Qxd5 {[%clk 0:02:49.7]} 6... Qe7
{[%clk 0:02:50.6]} 7. Nf4 {[%clk 0:02:43.7]} 7... g5 {[%clk 0:02:50.4]} 8. Nd3
{[%clk 0:02:41.2]} 8... Bg7 {[%clk 0:02:39]} 9. Nxe5 {[%clk 0:02:38.6]} 9...
Bxe5 {[%clk 0:02:39.9]} 10. Be2 {[%clk 0:02:29.9]} 10... Nc6 {[%clk 0:02:36.8]}
11. O-O {[%clk 0:02:25.5]} 11... Bd7 {[%clk 0:02:32.6]} 12. Nc3 {[%clk
0:02:13.7]} 12... O-O-O {[%clk 0:02:21.6]} 13. Qd1 {[%clk 0:02:01.4]} 13... Be6
{[%clk 0:02:21.2]} 14. Qa4 {[%clk 0:01:58.8]} 14... Qd6 {[%clk 0:01:55]} 15. Nb5
{[%clk 0:01:39.7]} 15... Qc5 {[%clk 0:01:52.8]} 16. Kh1 {[%clk 0:01:40.6]} 16...
a6 {[%clk 0:01:34.2]} 17. Nc3 {[%clk 0:01:40.2]} 17... g4 {[%clk 0:01:05.9]} 18.
Ne4 {[%clk 0:01:12.3]} 18... Qe7 {[%clk 0:01:05.9]} 19. Rb1 {[%clk 0:00:44.5]}
19... f5 {[%clk 0:01:03.2]} 20. Ng3 {[%clk 0:00:43.5]} 20... h5 {[%clk
0:01:01.8]} 21. b4 {[%clk 0:00:34.7]} 21... h4 {[%clk 0:01:01.4]} 22. b5 {[%clk
0:00:25.7]} 22... hxg3 {[%clk 0:01:01.7]} 23. fxg3 {[%clk 0:00:25.2]} 23...
Rxh2+ {[%clk 0:00:44.5]} 24. Kg1 {[%clk 0:00:17.3]} 24... Bxg3 {[%clk
0:00:39.1]} 25. Bxg4 {[%clk 0:00:10.1]} 25... fxg4 {[%clk 0:00:36.6]} 26. Rf4
{[%clk 0:00:06]} 26... Rh1+ {[%clk 0:00:35.7]} 27. Kxh1 {[%clk 0:00:06.2]} 27...
Qh4+ {[%clk 0:00:34.3]} 28. Kg1 {[%clk 0:00:06.7]} 28... Qh2+ {[%clk 0:00:34.5]}
29. Kf1 {[%clk 0:00:07.2]} 29... Qh1+ {[%clk 0:00:34.8]} 30. Ke2 {[%clk
0:00:07.7]} 30... Qxg2+ {[%clk 0:00:35.2]} 0-1

[Event "Early-Titled-Tuesday-Blitz-March-26-2024"]
[Site "Chess.com"]
[Date "2024.03.26"]
[Round "7"]
[White "artin10862"]
[Black "SirStrateg"]
[Result "1-0"]
[WhiteElo "2894"]
[BlackElo "2623"]
[TimeControl "180+1"]
[EndTime "9:14:59 PDT"]
[Termination "artin10862 won by resignation"]

1. e4 {[%clk 0:02:59.9]} 1... Nf6 {[%clk 0:03:00]} 2. e5 {[%clk 0:02:58.5]} 2...
Nd5 {[%clk 0:03:00.3]} 3. d4 {[%clk 0:02:58.1]} 3... Nb6 {[%clk 0:03:00.7]} 4.
a4 {[%clk 0:02:48.3]} 4... a5 {[%clk 0:02:59.6]} 5. Nf3 {[%clk 0:02:46.9]} 5...
d5 {[%clk 0:02:58.7]} 6. Bd3 {[%clk 0:02:41]} 6... Bg4 {[%clk 0:02:58.2]} 7. h3
{[%clk 0:02:39.4]} 7... Bxf3 {[%clk 0:02:58.4]} 8. Qxf3 {[%clk 0:02:39.3]} 8...
e6 {[%clk 0:02:59]} 9. c3 {[%clk 0:02:32.4]} 9... c5 {[%clk 0:02:58.4]} 10. Na3
{[%clk 0:02:22.9]} 10... Nc6 {[%clk 0:02:53.3]} 11. Nc2 {[%clk 0:02:22.6]} 11...
cxd4 {[%clk 0:02:47.2]} 12. cxd4 {[%clk 0:02:22.2]} 12... Be7 {[%clk 0:02:41.1]}
13. O-O {[%clk 0:02:18.5]} 13... Rc8 {[%clk 0:02:39.5]} 14. Qg4 {[%clk
0:02:11.7]} 14... g6 {[%clk 0:02:36]} 15. f4 {[%clk 0:02:11.6]} 15... h5 {[%clk
0:02:35.4]} 16. Qg3 {[%clk 0:02:01]} 16... Nd7 {[%clk 0:02:22.5]} 17. Be3 {[%clk
0:01:52.9]} 17... Qb6 {[%clk 0:02:20.4]} 18. Rfb1 {[%clk 0:01:21.4]} 18... Ndb8
{[%clk 0:02:10.7]} 19. Qf2 {[%clk 0:01:16.5]} 19... Na6 {[%clk 0:02:08.3]} 20.
Ne1 {[%clk 0:01:14.9]} 20... Nab4 {[%clk 0:02:06.9]} 21. Bb5 {[%clk 0:01:14.4]}
21... Kd7 {[%clk 0:02:00.8]} 22. Nf3 {[%clk 0:01:13.5]} 22... Kc7 {[%clk
0:01:53.9]} 23. g4 {[%clk 0:01:10.6]} 23... hxg4 {[%clk 0:01:53.7]} 24. hxg4
{[%clk 0:01:10.5]} 24... Kb8 {[%clk 0:01:54.3]} 25. Rc1 {[%clk 0:01:08.9]} 25...
Rh3 {[%clk 0:01:49.6]} 26. Bf1 {[%clk 0:01:00]} 26... Rh7 {[%clk 0:01:46.7]} 27.
Rc3 {[%clk 0:00:56.1]} 27... Rch8 {[%clk 0:01:42.6]} 28. Kg2 {[%clk 0:00:50.8]}
28... Bh4 {[%clk 0:01:14.5]} 29. Qd2 {[%clk 0:00:45.1]} 29... Be7 {[%clk
0:01:14.7]} 30. Rb3 {[%clk 0:00:40.8]} 30... Qd8 {[%clk 0:01:09.4]} 31. Re1
{[%clk 0:00:38]} 31... Qf8 {[%clk 0:01:09.2]} 32. Kf2 {[%clk 0:00:08.3]} 32...
Qh6 {[%clk 0:01:00.6]} 33. Bg2 {[%clk 0:00:06.6]} 33... Bh4+ {[%clk 0:00:58.1]}
34. Nxh4 {[%clk 0:00:06.6]} 34... Qxh4+ {[%clk 0:00:58.5]} 35. Kf3 {[%clk
0:00:07.3]} 35... Qh2 {[%clk 0:00:53.5]} 36. Bg1 {[%clk 0:00:02.4]} 36... Rh3+
{[%clk 0:00:51]} 37. Kf2 {[%clk 0:00:02.5]} 37... Qg3+ {[%clk 0:00:51.1]} 38.
Rxg3 {[%clk 0:00:02]} 38... Rxg3 {[%clk 0:00:48.9]} 39. Kxg3 {[%clk 0:00:02.9]}
39... Nxe5 {[%clk 0:00:49.2]} 40. fxe5 {[%clk 0:00:03.1]} 40... g5 {[%clk
0:00:49]} 41. Rf1 {[%clk 0:00:03.2]} 41... Nc6 {[%clk 0:00:49.5]} 42. Rxf7
{[%clk 0:00:03.2]} 42... Nxe5 {[%clk 0:00:50.4]} 43. dxe5 {[%clk 0:00:03.7]}
43... Rf8 {[%clk 0:00:50.9]} 44. Rxf8+ {[%clk 0:00:03.6]} 1-0

[Event "Early-Titled-Tuesday-Blitz-March-26-2024"]
[Site "Chess.com"]
[Date "2024.03.26"]
[Round "7"]
[White "jinbojinbo"]
[Black "Manukyan_Artak"]
[Result "1-0"]
[WhiteElo "2640"]
[BlackElo "2461"]
[TimeControl "180+1"]
[EndTime "9:14:59 PDT"]
[Termination "jinbojinbo won on time"]

1. c4 {[%clk 0:03:00.9]} 1... e6 {[%clk 0:02:58.5]} 2. Nc3 {[%clk 0:02:57.9]}
2... Bb4 {[%clk 0:02:54.1]} 3. e3 {[%clk 0:02:53.8]} 3... c5 {[%clk 0:02:52.4]}
4. Nf3 {[%clk 0:02:53.1]} 4... f5 {[%clk 0:02:51.4]} 5. d4 {[%clk 0:02:50.3]}
5... Nf6 {[%clk 0:02:47.4]} 6. Bd2 {[%clk 0:02:47.8]} 6... O-O {[%clk
0:02:46.5]} 7. Bd3 {[%clk 0:02:47.5]} 7... b6 {[%clk 0:02:44.9]} 8. O-O {[%clk
0:02:42.4]} 8... Bb7 {[%clk 0:02:44.5]} 9. a3 {[%clk 0:02:41]} 9... Bxc3 {[%clk
0:02:44.4]} 10. Bxc3 {[%clk 0:02:41.3]} 10... Ne4 {[%clk 0:02:44.3]} 11. Be1
{[%clk 0:02:39.5]} 11... d6 {[%clk 0:02:41.1]} 12. Nd2 {[%clk 0:02:38.7]} 12...
Nd7 {[%clk 0:02:24.4]} 13. f3 {[%clk 0:02:37.6]} 13... Nxd2 {[%clk 0:02:20.5]}
14. Qxd2 {[%clk 0:02:37.4]} 14... e5 {[%clk 0:02:19]} 15. dxc5 {[%clk
0:02:35.8]} 15... dxc5 {[%clk 0:02:14.1]} 16. Rd1 {[%clk 0:02:34.2]} 16... Bc6
{[%clk 0:01:46.6]} 17. Bg3 {[%clk 0:02:21.3]} 17... Qe7 {[%clk 0:01:45.9]} 18.
b4 {[%clk 0:02:20.1]} 18... Rad8 {[%clk 0:01:35.3]} 19. b5 {[%clk 0:02:19.7]}
19... Ba8 {[%clk 0:01:31.8]} 20. Qc2 {[%clk 0:02:17.4]} 20... e4 {[%clk
0:01:24.2]} 21. fxe4 {[%clk 0:02:17.5]} 21... Bxe4 {[%clk 0:01:18.9]} 22. Bxe4
{[%clk 0:02:16.1]} 22... fxe4 {[%clk 0:01:17.9]} 23. Rxf8+ {[%clk 0:02:11.1]}
23... Nxf8 {[%clk 0:01:17.5]} 24. Rxd8 {[%clk 0:02:03.7]} 24... Qxd8 {[%clk
0:01:18.4]} 25. Qxe4 {[%clk 0:02:03.8]} 25... Qd1+ {[%clk 0:01:17]} 26. Kf2
{[%clk 0:02:03.6]} 26... Qd2+ {[%clk 0:01:12.6]} 27. Kf1 {[%clk 0:02:03.2]}
27... Qc1+ {[%clk 0:01:06.7]} 28. Ke2 {[%clk 0:01:59.7]} 28... Qb2+ {[%clk
0:01:02.8]} 29. Kf3 {[%clk 0:01:58.3]} 29... Qf6+ {[%clk 0:00:49.9]} 30. Qf4
{[%clk 0:01:53.6]} 30... Qe7 {[%clk 0:00:47.2]} 31. Qf5 {[%clk 0:01:47.6]} 31...
g6 {[%clk 0:00:41.3]} 32. Qd5+ {[%clk 0:01:47.3]} 32... Ne6 {[%clk 0:00:41.4]}
33. Be5 {[%clk 0:01:28.1]} 33... h5 {[%clk 0:00:35.8]} 34. h3 {[%clk 0:01:23.4]}
34... Kh7 {[%clk 0:00:34.8]} 35. Kg3 {[%clk 0:01:15.1]} 35... Ng5 {[%clk
0:00:27.5]} 36. Kh2 {[%clk 0:01:11.5]} 36... Nf7 {[%clk 0:00:23.4]} 37. Bb8
{[%clk 0:01:11.2]} 37... h4 {[%clk 0:00:19.9]} 38. e4 {[%clk 0:01:10]} 38... Ng5
{[%clk 0:00:18.5]} 39. Qa8 {[%clk 0:00:40.6]} 39... Qxe4 {[%clk 0:00:14.1]} 40.
Qxe4 {[%clk 0:00:39.9]} 1-0

[Event "Early-Titled-Tuesday-Blitz-March-26-2024"]
[Site "Chess.com"]
[Date "2024.03.26"]
[Round "7"]
[White "Irina_Mikhaylova"]
[Black "Boorchess"]
[Result "1-0"]
[WhiteElo "2360"]
[BlackElo "2554"]
[TimeControl "180+1"]
[EndTime "9:14:59 PDT"]
[Termination "Irina_Mikhaylova won on time"]

1. d4 {[%clk 0:03:00.9]} 1... g6 {[%clk 0:02:57.8]} 2. Nf3 {[%clk 0:03:01.2]}
2... Bg7 {[%clk 0:02:55.6]} 3. c4 {[%clk 0:03:01.6]} 3... d6 {[%clk 0:02:50.9]}
4. Nc3 {[%clk 0:03:01.1]} 4... a6 {[%clk 0:02:49.1]} 5. e4 {[%clk 0:02:59.8]}
5... e6 {[%clk 0:02:44.8]} 6. Be2 {[%clk 0:02:58.8]} 6... h6 {[%clk 0:02:44]} 7.
O-O {[%clk 0:02:58.4]} 7... Ne7 {[%clk 0:02:42.2]} 8. Be3 {[%clk 0:02:57.3]}
8... g5 {[%clk 0:02:41.6]} 9. d5 {[%clk 0:02:56.3]} 9... Ng6 {[%clk 0:02:37.9]}
10. Nd4 {[%clk 0:02:41]} 10... O-O {[%clk 0:02:28.5]} 11. Re1 {[%clk 0:02:37.7]}
11... Qe7 {[%clk 0:02:12.9]} 12. Qd2 {[%clk 0:02:26.9]} 12... Nd7 {[%clk
0:02:10.9]} 13. b4 {[%clk 0:02:08.4]} 13... Bxd4 {[%clk 0:02:05.9]} 14. Bxd4
{[%clk 0:02:08.1]} 14... e5 {[%clk 0:02:01.6]} 15. Be3 {[%clk 0:02:08.1]} 15...
Nf4 {[%clk 0:01:57.3]} 16. Bf1 {[%clk 0:02:08]} 16... Nf6 {[%clk 0:01:50.1]} 17.
c5 {[%clk 0:01:54]} 17... Ng4 {[%clk 0:01:47.8]} 18. Rac1 {[%clk 0:01:44.3]}
18... f5 {[%clk 0:01:45.2]} 19. f3 {[%clk 0:01:33.1]} 19... Nxe3 {[%clk
0:01:34]} 20. Qxe3 {[%clk 0:01:33.2]} 20... g4 {[%clk 0:01:10.4]} 21. cxd6
{[%clk 0:01:09.3]} 21... cxd6 {[%clk 0:01:08.7]} 22. g3 {[%clk 0:00:58.6]} 22...
Qg5 {[%clk 0:00:51.2]} 23. gxf4 {[%clk 0:00:40.1]} 23... exf4 {[%clk 0:00:51.1]}
24. Qd4 {[%clk 0:00:34.2]} 24... Bd7 {[%clk 0:00:42.1]} 25. exf5 {[%clk
0:00:25.4]} 25... Rxf5 {[%clk 0:00:41]} 26. Ne4 {[%clk 0:00:25]} 26... Qh4
{[%clk 0:00:19.7]} 27. fxg4 {[%clk 0:00:20.6]} 27... Qxg4+ {[%clk 0:00:16.7]}
28. Kh1 {[%clk 0:00:20.9]} 28... Kh7 {[%clk 0:00:05.2]} 29. Nf2 {[%clk
0:00:18.5]} 29... Qg6 {[%clk 0:00:01.1]} 30. Bd3 {[%clk 0:00:16.5]} 1-0

[Event "Early-Titled-Tuesday-Blitz-March-26-2024"]
[Site "Chess.com"]
[Date "2024.03.26"]
[Round "7"]
[White "Suleyman_Chess06"]
[Black "TigrVShlyape"]
[Result "1-0"]
[WhiteElo "2727"]
[BlackElo "2906"]
[TimeControl "180+1"]
[EndTime "9:15:01 PDT"]
[Termination "Suleyman_Chess06 won on time"]

1. Nf3 {[%clk 0:03:00.9]} 1... d5 {[%clk 0:02:58.2]} 2. g3 {[%clk 0:03:00.8]}
2... Nf6 {[%clk 0:02:57.5]} 3. Bg2 {[%clk 0:03:01.3]} 3... c6 {[%clk 0:02:57.9]}
4. O-O {[%clk 0:03:01.6]} 4... Bf5 {[%clk 0:02:57.6]} 5. c4 {[%clk 0:03:01.4]}
5... e6 {[%clk 0:02:57.1]} 6. d3 {[%clk 0:02:58.9]} 6... dxc4 {[%clk 0:02:57.1]}
7. dxc4 {[%clk 0:02:58.7]} 7... Qxd1 {[%clk 0:02:56.6]} 8. Rxd1 {[%clk
0:02:58.6]} 8... h6 {[%clk 0:02:54]} 9. Nc3 {[%clk 0:02:58.4]} 9... Nbd7 {[%clk
0:02:53.7]} 10. Bf4 {[%clk 0:02:57.7]} 10... g5 {[%clk 0:02:52.6]} 11. Be3
{[%clk 0:02:51.7]} 11... a5 {[%clk 0:02:47.1]} 12. Nd4 {[%clk 0:02:50.8]} 12...
Bg6 {[%clk 0:02:45.8]} 13. h3 {[%clk 0:02:49.9]} 13... Rc8 {[%clk 0:02:29.2]}
14. Rd2 {[%clk 0:02:48.9]} 14... Bb4 {[%clk 0:02:26.1]} 15. a3 {[%clk
0:02:47.5]} 15... Bxc3 {[%clk 0:02:24.3]} 16. bxc3 {[%clk 0:02:48.4]} 16... Ne5
{[%clk 0:02:24.1]} 17. Rb2 {[%clk 0:02:40.2]} 17... Nxc4 {[%clk 0:02:15.4]} 18.
Rxb7 {[%clk 0:02:40.3]} 18... Nxe3 {[%clk 0:01:47.8]} 19. fxe3 {[%clk
0:02:34.4]} 19... Nd5 {[%clk 0:01:39.5]} 20. Nxc6 {[%clk 0:02:13.1]} 20... Rxc6
{[%clk 0:00:45.6]} 21. Rb8+ {[%clk 0:02:11.3]} 21... Ke7 {[%clk 0:00:46]} 22.
Rxh8 {[%clk 0:02:11.4]} 22... Rxc3 {[%clk 0:00:46.3]} 23. Bxd5 {[%clk
0:02:05.4]} 23... exd5 {[%clk 0:00:46.4]} 24. Kf2 {[%clk 0:02:06]} 24... Kf6
{[%clk 0:00:39.6]} 25. Ra8 {[%clk 0:01:56.7]} 25... Rc5 {[%clk 0:00:37.5]} 26.
Rd1 {[%clk 0:01:53.8]} 26... Be4 {[%clk 0:00:35.7]} 27. Ra6+ {[%clk 0:01:49]}
27... Kg7 {[%clk 0:00:35.7]} 28. Rd2 {[%clk 0:01:45.5]} 28... h5 {[%clk
0:00:33.7]} 29. Ra7 {[%clk 0:01:39.9]} 29... Rc1 {[%clk 0:00:32.7]} 30. Rxa5
{[%clk 0:01:33.9]} 30... Rh1 {[%clk 0:00:32.2]} 31. Rdxd5 {[%clk 0:01:32.1]}
31... Bxd5 {[%clk 0:00:30.4]} 32. Rxd5 {[%clk 0:01:33]} 32... Kg6 {[%clk
0:00:29.9]} 33. Kg2 {[%clk 0:01:30.6]} 33... Re1 {[%clk 0:00:26.9]} 34. Rd2
{[%clk 0:01:30.7]} 34... Ra1 {[%clk 0:00:26.5]} 35. Rd3 {[%clk 0:01:30.5]} 35...
g4 {[%clk 0:00:24.2]} 36. hxg4 {[%clk 0:01:26.4]} 36... hxg4 {[%clk 0:00:24.2]}
37. Rb3 {[%clk 0:01:24.8]} 37... f5 {[%clk 0:00:23.6]} 38. Kf2 {[%clk
0:01:23.9]} 38... Kf6 {[%clk 0:00:22.8]} 39. Rb6+ {[%clk 0:01:23.8]} 39... Ke5
{[%clk 0:00:22.8]} 40. Ra6 {[%clk 0:01:24.2]} 40... Kd5 {[%clk 0:00:18.1]} 41.
a4 {[%clk 0:01:23.2]} 41... Ke5 {[%clk 0:00:18.1]} 42. a5 {[%clk 0:01:22.9]}
42... Ra3 {[%clk 0:00:18.3]} 43. Ra8 {[%clk 0:01:22.7]} 43... Kf6 {[%clk
0:00:18.5]} 44. a6 {[%clk 0:01:23.3]} 44... Kg7 {[%clk 0:00:18.3]} 45. a7 {[%clk
0:01:24.1]} 45... Kh7 {[%clk 0:00:17.4]} 46. Ke1 {[%clk 0:01:23.7]} 46... Ra2
{[%clk 0:00:16.7]} 47. Kd1 {[%clk 0:01:23.7]} 47... Kg7 {[%clk 0:00:16.6]} 48.
Kc1 {[%clk 0:01:24.1]} 48... Ra6 {[%clk 0:00:12.9]} 49. Kd2 {[%clk 0:01:24]}
49... Ra3 {[%clk 0:00:12.8]} 50. Kc2 {[%clk 0:01:24.2]} 50... Ra6 {[%clk
0:00:12.1]} 51. Kc3 {[%clk 0:01:24.3]} 51... Ra4 {[%clk 0:00:12.2]} 52. Kb3
{[%clk 0:01:24.6]} 52... Ra1 {[%clk 0:00:12.2]} 53. Kc4 {[%clk 0:01:24.9]} 53...
Ra5 {[%clk 0:00:10.9]} 54. Kb4 {[%clk 0:01:25.1]} 54... Ra2 {[%clk 0:00:10.4]}
55. Kc5 {[%clk 0:01:25.7]} 55... Ra1 {[%clk 0:00:08.7]} 56. Kb6 {[%clk 0:01:25]}
56... Rb1+ {[%clk 0:00:08.7]} 57. Kc6 {[%clk 0:01:25.6]} 57... Rc1+ {[%clk
0:00:06.9]} 58. Kd6 {[%clk 0:01:24.8]} 58... Ra1 {[%clk 0:00:07.1]} 59. Ke5
{[%clk 0:01:24]} 59... Ra5+ {[%clk 0:00:05.1]} 60. Ke6 {[%clk 0:01:24.4]} 60...
Kh7 {[%clk 0:00:02.9]} 61. Kf6 {[%clk 0:01:24.7]} 1-0

[Event "Early-Titled-Tuesday-Blitz-March-26-2024"]
[Site "Chess.com"]
[Date "2024.03.26"]
[Round "7"]
[White "Practical-Play"]
[Black "kidagent"]
[Result "1-0"]
[WhiteElo "2504"]
[BlackElo "2320"]
[TimeControl "180+1"]
[EndTime "9:15:01 PDT"]
[Termination "Practical-Play won on time"]

1. d4 {[%clk 0:03:00.9]} 1... d5 {[%clk 0:02:59.5]} 2. e4 {[%clk 0:03:00.2]}
2... dxe4 {[%clk 0:02:58.7]} 3. f3 {[%clk 0:03:00.8]} 3... exf3 {[%clk
0:02:57.1]} 4. Nxf3 {[%clk 0:03:01.7]} 4... Nf6 {[%clk 0:02:55.9]} 5. Bd3 {[%clk
0:03:00.3]} 5... Bg4 {[%clk 0:02:53.2]} 6. c3 {[%clk 0:02:58.6]} 6... e6 {[%clk
0:02:51.9]} 7. O-O {[%clk 0:02:58.3]} 7... c5 {[%clk 0:02:50.4]} 8. Qe1 {[%clk
0:02:55.2]} 8... Bxf3 {[%clk 0:02:47.9]} 9. Rxf3 {[%clk 0:02:54.8]} 9... cxd4
{[%clk 0:02:47.2]} 10. Qg3 {[%clk 0:02:43.8]} 10... Nc6 {[%clk 0:02:39.1]} 11.
Na3 {[%clk 0:02:30.9]} 11... Qd6 {[%clk 0:02:11.1]} 12. Bf4 {[%clk 0:02:23.5]}
12... e5 {[%clk 0:02:10]} 13. Nc4 {[%clk 0:02:22]} 13... Qc5 {[%clk 0:02:00]}
14. Nxe5 {[%clk 0:02:16.5]} 14... dxc3+ {[%clk 0:01:56.8]} 15. Re3 {[%clk
0:02:14.3]} 15... Nxe5 {[%clk 0:01:44.7]} 16. Bxe5 {[%clk 0:02:13]} 16... Be7
{[%clk 0:01:26.8]} 17. Bd6 {[%clk 0:01:51.4]} 17... cxb2 {[%clk 0:01:04.2]} 18.
Re1 {[%clk 0:01:47.6]} 18... O-O {[%clk 0:01:01.5]} 19. Bxe7 {[%clk 0:01:37.1]}
19... Qb6 {[%clk 0:00:55.5]} 20. Bxf8 {[%clk 0:01:17.7]} 20... Rxf8 {[%clk
0:00:56.4]} 21. Kh1 {[%clk 0:01:01.1]} 21... Qc6 {[%clk 0:00:41.5]} 22. Bb1
{[%clk 0:00:52.1]} 22... Nd5 {[%clk 0:00:39.4]} 23. Rb3 {[%clk 0:00:47.9]} 23...
Qc1 {[%clk 0:00:35.5]} 24. Qe5 {[%clk 0:00:28.7]} 24... Nf4 {[%clk 0:00:16.6]}
25. Rxb2 {[%clk 0:00:27]} 25... Qc4 {[%clk 0:00:07.6]} 26. Rd2 {[%clk
0:00:19.3]} 26... Ng6 {[%clk 0:00:04.4]} 27. Qe4 {[%clk 0:00:16.5]} 27... Qc5
{[%clk 0:00:03.6]} 28. Qd4 {[%clk 0:00:16.2]} 28... Qg5 {[%clk 0:00:03.4]} 29.
Rf1 {[%clk 0:00:15.1]} 29... h6 {[%clk 0:00:02.2]} 30. Rdf2 {[%clk 0:00:15.2]}
30... Nh4 {[%clk 0:00:01.2]} 31. Qf4 {[%clk 0:00:14.5]} 1-0